fUSD/lending_fUSD_20260605
["ID","MTS","AMOUNT","RATE_DAILY","PERIOD"]
[424175347,1780627841000,-2236.95670847,0.00021154,2]
[424175353,1780627841000,-14404.06,0.00021712,2]
[424175364,1780627841000,-240.0,0.00022,2]
[424175362,1780627841000,-302.0,0.00022,2]
[424175359,1780627841000,-1037.0,0.00022,2]
[424175360,1780627841000,-236.0,0.00022,2]
[424175357,1780627841000,-215.0,0.00022,2]
[424175361,1780627841000,-1454.0,0.00022,2]
[424175356,1780627841000,-858.0,0.00022,2]
[424175355,1780627841000,-315.0,0.00022,2]
[424175354,1780627841000,-5000.0,0.00021918,2]
[424175358,1780627841000,-1118.0,0.00022,2]
[424175434,1780627842000,-1466.0,0.00025,2]
[424175433,1780627842000,-236.0,0.00025,2]
[424175438,1780627842000,-418.0,0.00025,2]
[424175432,1780627842000,-1056.0,0.00025,2]
[424175430,1780627842000,-224.0,0.00025,2]
[424175427,1780627842000,-2884.75459676,0.0002499,2]
[424175417,1780627842000,-2429.61,0.00024174,2]
[424175421,1780627842000,-200.0,0.00024454,2]
[424175422,1780627842000,-629.1069766,0.00024654,2]
[424175425,1780627842000,-2098.1,0.00024806,7]
[424175424,1780627842000,-1000.0,0.00024658,2]
[424175423,1780627842000,-179.91,0.00024658,2]
[424175437,1780627842000,-1094.0,0.00025,2]
[424175444,1780627842000,-266.13348859,0.00025538,2]
[424175435,1780627842000,-303.0,0.00025,2]
[424175440,1780627842000,-227.0,0.00025,2]
[424175439,1780627842000,-483.0,0.00025,2]
[424175431,1780627842000,-1137.0,0.00025,2]
[424175441,1780627842000,-14404.06,0.00025137,7]
[424175443,1780627842000,-600.631,0.00025467,30]
[424175452,1780627842000,-152.0,0.00026286,7]
[424175451,1780627842000,-152.0,0.00026257,7]
[424175442,1780627842000,-1129.18532635,0.00025383,2]
[424175453,1780627842000,-152.0,0.00026286,7]
[424175445,1780627842000,-161.15,0.00025644,2]
[424175426,1780627842000,-500.0,0.00024879,2]
[424175436,1780627842000,-242.0,0.00025,2]
[424175419,1780627842000,-763.9,0.00024324,2]
[424175404,1780627842000,-858.0,0.00024,2]
[424175429,1780627842000,-864.33706139,0.00025,2]
[424175392,1780627842000,-240.0,0.00023,2]
[424175391,1780627842000,-302.0,0.00023,2]
[424175402,1780627842000,-2682.57183977,0.00023894,2]
[424175394,1780627842000,-410.0,0.00023,2]
[424175449,1780627842000,-409.82,0.000261,14]
[424175393,1780627842000,-1088.0,0.00023,2]
[424175395,1780627842000,-472.0,0.00023,2]
[424175403,1780627842000,-315.0,0.00024,2]
[424175396,1780627842000,-219.0,0.00023,2]
[424175398,1780627842000,-1356.0,0.00023244,2]
[424175400,1780627842000,-14404.06,0.00023425,7]
[424175401,1780627842000,-215.77576141,0.000235,7]
[424175399,1780627842000,-2586.85809042,0.00023346,2]
[424175428,1780627842000,-334.0,0.00025,2]
[424175397,1780627842000,-176.483726,0.00023232,14]
[424175416,1780627842000,-219.0,0.00024,2]
[424175405,1780627842000,-215.0,0.00024,2]
[424175408,1780627842000,-236.0,0.00024,2]
[424175407,1780627842000,-1037.0,0.00024,2]
[424175409,1780627842000,-1454.0,0.00024,2]
[424175413,1780627842000,-1088.0,0.00024,2]
[424175415,1780627842000,-472.0,0.00024,2]
[424175411,1780627842000,-500.0,0.00024,2]
[424175410,1780627842000,-302.0,0.00024,2]
[424175412,1780627842000,-240.0,0.00024,2]
[424175414,1780627842000,-410.0,0.00024,2]
[424175418,1780627842000,-322.02,0.00024174,2]
[424175420,1780627842000,-2781.82699784,0.00024442,2]
[424175406,1780627842000,-1118.0,0.00024,2]
[424175446,1780627842000,-2429.61,0.00025786,2]
[424175448,1780627842000,-550.0,0.00026,2]
[424175450,1780627842000,-152.0,0.00026257,7]
[424175484,1780627842000,-215.77576141,0.00028,7]
[424175486,1780627842000,-182.447999,0.00028002,2]
[424175485,1780627842000,-158.99525436,0.00028002,2]
[424175487,1780627842000,-172.57260625,0.00028002,2]
[424175489,1780627842000,-160.15448357,0.00028003,2]
[424175488,1780627842000,-178.56197579,0.00028002,2]
[424175492,1780627842000,-3553.0,0.00028263,2]
[424175493,1780627842000,-1357.0,0.00028263,2]
[424175504,1780627842000,-594.54,0.0002863,30]
[424175494,1780627842000,-1273.0,0.00028263,2]
[424175503,1780627842000,-159.56,0.0002863,2]
[424175497,1780627842000,-150.0,0.00028263,2]
[424175495,1780627842000,-525.0,0.00028263,2]
[424175482,1780627842000,-504.0,0.00027903,2]
[424175496,1780627842000,-1227.0,0.00028263,2]
[424175505,1780627842000,-284.72,0.0002863,30]
[424175501,1780627842000,-763.9,0.00028267,2]
[424175500,1780627842000,-6072.0,0.00028263,2]
[424175502,1780627842000,-14404.06,0.00028562,7]
[424175507,1780627842000,-158.52,0.0002863,2]
[424175506,1780627842000,-577.27,0.0002863,30]
[424175508,1780627842000,-577.25,0.0002863,30]
[424175510,1780627842000,-595.33,0.0002863,30]
[424175511,1780627842000,-159.56,0.00028661,7]
[424175513,1780627842000,-504.0,0.00028669,3]
[424175509,1780627842000,-284.63,0.0002863,30]
[424175447,1780627842000,-322.02,0.00025786,2]
[424175514,1780627842000,-159.56,0.00028693,30]
[424175498,1780627842000,-419.0,0.00028263,2]
[424175483,1780627842000,-600.0,0.00028,2]
[424175512,1780627842000,-158.52,0.00028661,7]
[424175479,1780627842000,-171.19,0.000274,7]
[424175491,1780627842000,-200.0,0.00028118,2]
[424175454,1780627842000,-763.9,0.00026296,2]
[424175455,1780627842000,-152.0,0.00026335,7]
[424175458,1780627842000,-152.0,0.00026335,7]
[424175457,1780627842000,-152.0,0.00026335,7]
[424175463,1780627842000,-409.0,0.00026921,2]
[424175460,1780627842000,-152.0,0.0002637,7]
[424175459,1780627842000,-152.0,0.0002637,7]
[424175465,1780627842000,-1329.0,0.00026922,2]
[424175461,1780627842000,-193.4,0.00026564,2]
[424175464,1780627842000,-1346.0,0.00026922,2]
[424175462,1780627842000,-14404.06,0.00026849,7]
[424175467,1780627842000,-1432.730858,0.00027,60]
[424175466,1780627842000,-1432.730858,0.00027,60]
[424175456,1780627842000,-152.0,0.00026335,7]
[424175468,1780627842000,-1432.730859,0.00027,60]
[424175478,1780627842000,-163.43,0.000274,14]
[424175490,1780627842000,-182.59545716,0.00028003,2]
[424175480,1780627842000,-500.0,0.000275,7]
[424175474,1780627842000,-1500.0,0.00027397,2]
[424175472,1780627842000,-200.0,0.00027341,2]
[424175471,1780627842000,-629.1069766,0.00027207,2]
[424175481,1780627842000,-2098.1,0.00027612,7]
[424175473,1780627842000,-369.03668275,0.00027396,2]
[424175470,1780627842000,-504.0,0.00027137,2]
[424175475,1780627842000,-300.0,0.00027397,2]
[424175469,1780627842000,-215.77576141,0.00027,3]
[424175477,1780627842000,-22279.8,0.00027397,10]
[424175476,1780627842000,-737.46,0.00027397,20]
[424175565,1780627843000,-159.56,0.00029105,2]
[424175553,1780627843000,-188.29,0.00029,2]
[424175552,1780627843000,-188.3,0.00029,2]
[424175548,1780627843000,-595.33,0.00028964,2]
[424175554,1780627843000,-171.19,0.00029,7]
[424175550,1780627843000,-158.52,0.00028979,30]
[424175551,1780627843000,-8003.76370971,0.00029,2]
[424175545,1780627843000,-577.27,0.00028964,2]
[424175547,1780627843000,-284.63,0.00028964,2]
[424175556,1780627843000,-160.0,0.00029,2]
[424175549,1780627843000,-159.56,0.00028979,30]
[424175544,1780627843000,-284.72,0.00028964,2]
[424175558,1780627843000,-158.52,0.0002901,2]
[424175555,1780627843000,-200.0,0.00029,2]
[424175557,1780627843000,-159.56,0.0002901,2]
[424175566,1780627843000,-158.52,0.00029105,2]
[424175562,1780627843000,-159.56,0.00029074,30]
[424175560,1780627843000,-159.56,0.00029042,7]
[424175559,1780627843000,-2793.4,0.00029016,2]
[424175563,1780627843000,-158.52,0.00029074,30]
[424175561,1780627843000,-158.52,0.00029042,7]
[424175577,1780627843000,-300.0,0.00029134,2]
[424175567,1780627843000,-3329.0,0.00029132,5]
[424175568,1780627843000,-2669.0,0.00029132,5]
[424175572,1780627843000,-577.25,0.00029132,30]
[424175546,1780627843000,-577.25,0.00028964,2]
[424175564,1780627843000,-163.43,0.000291,14]
[424175534,1780627843000,-200.0,0.00028894,2]
[424175527,1780627843000,-595.33,0.00028797,7]
[424175533,1780627843000,-158.52,0.00028883,30]
[424175578,1780627843000,-300.0,0.00029134,2]
[424175518,1780627843000,-159.56,0.00028756,7]
[424175517,1780627843000,-158.52,0.00028725,2]
[424175515,1780627843000,-158.52,0.00028693,30]
[424175516,1780627843000,-159.56,0.00028725,2]
[424175522,1780627843000,-594.54,0.00028797,7]
[424175519,1780627843000,-158.52,0.00028756,7]
[424175523,1780627843000,-284.72,0.00028797,7]
[424175530,1780627843000,-159.56,0.00028852,7]
[424175521,1780627843000,-158.52,0.00028788,30]
[424175525,1780627843000,-577.25,0.00028797,7]
[424175526,1780627843000,-284.63,0.00028797,7]
[424175541,1780627843000,-159.56,0.00028947,7]
[424175520,1780627843000,-159.56,0.00028788,30]
[424175524,1780627843000,-577.27,0.00028797,7]
[424175528,1780627843000,-159.56,0.0002882,2]
[424175532,1780627843000,-159.56,0.00028883,30]
[424175543,1780627843000,-594.54,0.00028964,2]
[424175542,1780627843000,-158.52,0.00028947,7]
[424175535,1780627843000,-1601.06150105,0.000289,2]
[424175540,1780627843000,-158.52,0.00028915,2]
[424175539,1780627843000,-159.56,0.00028915,2]
[424175531,1780627843000,-158.52,0.00028852,7]
[424175536,1780627843000,-1414.2709926,0.000289,2]
[424175537,1780627843000,-1414.2709926,0.000289,2]
[424175538,1780627843000,-1414.2709926,0.000289,2]
[424175529,1780627843000,-158.52,0.0002882,2]
[424175570,1780627843000,-284.72,0.00029132,30]
[424175587,1780627843000,-158.52,0.00029137,7]
[424175574,1780627843000,-595.33,0.00029132,30]
[424175616,1780627843000,-152.0,0.00029414,30]
[424175612,1780627843000,-365.19091431,0.00029319,2]
[424175619,1780627843000,-302.0,0.00029414,30]
[424175614,1780627843000,-1118.0,0.00029414,30]
[424175620,1780627843000,-240.0,0.00029414,30]
[424175615,1780627843000,-1037.0,0.00029414,30]
[424175618,1780627843000,-1454.0,0.00029414,30]
[424175617,1780627843000,-236.0,0.00029414,30]
[424175622,1780627843000,-410.0,0.00029418,30]
[424175624,1780627843000,-472.0,0.00029418,30]
[424175633,1780627843000,-150.0,0.00029534,2]
[424175632,1780627843000,-858.0,0.00029501,30]
[424175613,1780627843000,-215.0,0.00029414,30]
[424175626,1780627843000,-219.0,0.00029418,30]
[424175634,1780627843000,-629.1069766,0.00029761,2]
[424175636,1780627843000,-1129.18532635,0.00029889,2]
[424175635,1780627843000,-180.0,0.00029841,2]
[424175628,1780627843000,-504.0,0.00029435,4]
[424175631,1780627843000,-315.0,0.00029501,30]
[424175629,1780627843000,-1105.51,0.0002948,7]
[424175639,1780627843000,-215.77576141,0.0003,30]
[424175638,1780627843000,-650.0,0.0003,2]
[424175643,1780627843000,-152.9374675,0.00030035,2]
[424175640,1780627843000,-244.70816835,0.00030027,2]
[424175641,1780627843000,-227.75539346,0.00030027,2]
[424175571,1780627843000,-577.27,0.00029132,30]
[424175637,1780627843000,-171.19,0.000299,7]
[424175621,1780627843000,-1088.0,0.00029418,30]
[424175642,1780627843000,-287.13705759,0.00030027,2]
[424175609,1780627843000,-345.14521249,0.00029318,2]
[424175611,1780627843000,-320.30896715,0.00029319,2]
[424175569,1780627843000,-594.54,0.00029132,30]
[424175575,1780627843000,-300.0,0.00029134,2]
[424175576,1780627843000,-300.0,0.00029134,2]
[424175579,1780627843000,-300.0,0.00029134,2]
[424175580,1780627843000,-300.0,0.00029134,2]
[424175581,1780627843000,-300.0,0.00029134,2]
[424175582,1780627843000,-300.0,0.00029134,2]
[424175585,1780627843000,-159.56,0.00029137,7]
[424175589,1780627843000,-159.56,0.00029169,30]
[424175583,1780627843000,-194.0,0.00029134,2]
[424175597,1780627843000,-159.68,0.00029232,7]
[424175591,1780627843000,-158.52,0.00029169,30]
[424175573,1780627843000,-284.63,0.00029132,30]
[424175593,1780627843000,-159.56,0.00029201,2]
[424175610,1780627843000,-357.12395159,0.00029318,2]
[424175607,1780627843000,-317.99050871,0.00029318,2]
[424175601,1780627843000,-594.54,0.00029299,7]
[424175644,1780627843000,-1000.0,0.00030082,14]
[424175606,1780627843000,-595.33,0.00029299,7]
[424175608,1780627843000,-364.89599799,0.00029318,2]
[424175603,1780627843000,-284.72,0.00029299,7]
[424175604,1780627843000,-577.25,0.00029299,7]
[424175602,1780627843000,-577.27,0.00029299,7]
[424175600,1780627843000,-158.59,0.00029232,7]
[424175595,1780627843000,-158.52,0.00029201,2]
[424175605,1780627843000,-284.63,0.00029299,7]
[424175679,1780627844000,-2098.1,0.00030418,7]
[424175681,1780627844000,-410.0,0.00030418,30]
[424175680,1780627844000,-1088.0,0.00030418,30]
[424175677,1780627844000,-302.0,0.00030414,30]
[424175673,1780627844000,-1037.0,0.00030414,30]
[424175684,1780627844000,-315.0,0.00030501,30]
[424175678,1780627844000,-240.0,0.00030414,30]
[424175683,1780627844000,-219.0,0.00030418,30]
[424175676,1780627844000,-1454.0,0.00030414,30]
[424175672,1780627844000,-1118.0,0.00030414,30]
[424175685,1780627844000,-858.0,0.00030501,30]
[424175682,1780627844000,-472.0,0.00030418,30]
[424175701,1780627844000,-366.64516011,0.00030781,2]
[424175687,1780627844000,-271.07002106,0.00030609,2]
[424175689,1780627844000,-455.51078693,0.00030609,2]
[424175699,1780627844000,-186.52428174,0.00030781,2]
[424175695,1780627844000,-172.54426877,0.00030617,2]
[424175690,1780627844000,-412.96922992,0.00030609,2]
[424175688,1780627844000,-574.27411519,0.00030609,2]
[424175700,1780627844000,-217.32247293,0.00030781,2]
[424175691,1780627844000,-197.02294227,0.00030617,2]
[424175697,1780627844000,-251.74354526,0.00030617,2]
[424175692,1780627844000,-305.874935,0.00030617,2]
[424175671,1780627844000,-215.0,0.00030414,30]
[424175698,1780627844000,-234.87751754,0.00030769,6]
[424175686,1780627844000,-489.41633671,0.00030609,2]
[424175669,1780627844000,-763.9,0.00030239,2]
[424175654,1780627844000,-244.48807992,0.00030196,2]
[424175670,1780627844000,-1072.34,0.00030365,7]
[424175696,1780627844000,-267.23460684,0.00030617,2]
[424175648,1780627844000,-179.91,0.00030137,2]
[424175647,1780627844000,-183.0,0.00030113,2]
[424175649,1780627844000,-266.51,0.00030137,2]
[424175646,1780627844000,-163.43,0.000301,14]
[424175645,1780627844000,-412.0,0.00030091,2]
[424175652,1780627844000,-14404.06,0.00030137,7]
[424175651,1780627844000,-995.99,0.00030137,7]
[424175650,1780627844000,-191.86,0.00030137,30]
[424175653,1780627844000,-152.0,0.00030156,120]
[424175661,1780627844000,-517.71781874,0.00030196,2]
[424175662,1780627844000,-535.68592738,0.00030196,2]
[424175655,1780627844000,-183.32258006,0.00030196,2]
[424175660,1780627844000,-547.34399699,0.00030196,2]
[424175656,1780627844000,-200.58209339,0.00030196,2]
[424175659,1780627844000,-244.45056195,0.00030196,2]
[424175657,1780627844000,-476.98576307,0.00030196,2]
[424175658,1780627844000,-224.71994023,0.00030196,2]
[424175663,1780627844000,-215.33520792,0.00030197,2]
[424175675,1780627844000,-236.0,0.00030414,30]
[424175674,1780627844000,-152.0,0.00030414,30]
[424175664,1780627844000,-273.46435687,0.00030197,2]
[424175666,1780627844000,-547.78637147,0.00030197,2]
[424175665,1780627844000,-480.46345072,0.00030197,2]
[424175667,1780627844000,-307.167492,0.000302,2]
[424175668,1780627844000,-504.0,0.00030202,5]
[424175694,1780627844000,-170.78522632,0.00030617,2]
[424175693,1780627844000,-155.65079442,0.00030617,2]
[424175705,1780627844000,-192.47297494,0.00030781,2]
[424175732,1780627844000,-160.0,0.000312,4]
[424175733,1780627844000,-1000.0,0.000312,7]
[424175734,1780627844000,-1039.18,0.00031249,7]
[424175736,1780627844000,-1357.0,0.00031263,2]
[424175737,1780627844000,-1273.0,0.00031263,2]
[424175735,1780627844000,-3553.0,0.00031263,2]
[424175738,1780627844000,-525.0,0.00031263,2]
[424175742,1780627844000,-6072.0,0.00031263,2]
[424175744,1780627844000,-794.97627178,0.00031366,2]
[424175741,1780627844000,-419.0,0.00031263,2]
[424175743,1780627844000,-403.30676112,0.00031361,2]
[424175749,1780627844000,-706.0,0.000314,2]
[424175731,1780627844000,-160.0,0.000312,4]
[424175752,1780627844000,-1037.0,0.00031414,30]
[424175754,1780627844000,-236.0,0.00031414,30]
[424175747,1780627844000,-800.77241787,0.00031367,2]
[424175748,1780627844000,-912.97728578,0.00031367,2]
[424175746,1780627844000,-892.80987897,0.00031366,2]
[424175750,1780627844000,-215.0,0.00031414,30]
[424175751,1780627844000,-1118.0,0.00031414,30]
[424175756,1780627844000,-302.0,0.00031414,30]
[424175757,1780627844000,-240.0,0.00031414,30]
[424175755,1780627844000,-1454.0,0.00031414,30]
[424175758,1780627844000,-1088.0,0.00031418,30]
[424175702,1780627844000,-226.52106466,0.00030781,2]
[424175759,1780627844000,-410.0,0.00031418,30]
[424175745,1780627844000,-912.23999498,0.00031366,2]
[424175739,1780627844000,-1227.0,0.00031263,2]
[424175753,1780627844000,-152.0,0.00031414,30]
[424175729,1780627844000,-500.0,0.00031151,2]
[424175707,1780627844000,-635.98101743,0.00030781,2]
[424175706,1780627844000,-401.16418677,0.00030781,2]
[424175740,1780627844000,-150.0,0.00031263,2]
[424175704,1780627844000,-158.47112292,0.00030781,2]
[424175703,1780627844000,-314.59136624,0.00030781,2]
[424175708,1780627844000,-449.43988046,0.00030781,2]
[424175711,1780627844000,-729.79199598,0.00030781,2]
[424175712,1780627844000,-331.44951855,0.00030781,2]
[424175709,1780627844000,-488.9011239,0.00030781,2]
[424175713,1780627844000,-690.29042498,0.00030781,2]
[424175715,1780627844000,-447.39976232,0.00030781,2]
[424175714,1780627844000,-237.74509502,0.00030781,2]
[424175717,1780627844000,-430.67041583,0.00030782,2]
[424175710,1780627844000,-257.90603374,0.00030781,2]
[424175723,1780627844000,-730.38182862,0.00030782,2]
[424175728,1780627844000,-966.11,0.00031041,7]
[424175726,1780627844000,-504.0,0.00030968,6]
[424175725,1780627844000,-232.95666711,0.00030782,2]
[424175718,1780627844000,-546.92871374,0.00030782,2]
[424175727,1780627844000,-150.0,0.00031011,2]
[424175719,1780627844000,-200.75782505,0.00030782,2]
[424175716,1780627844000,-714.24790317,0.00030781,2]
[424175722,1780627844000,-212.45121108,0.00030782,2]
[424175721,1780627844000,-240.88204458,0.00030782,2]
[424175720,1780627844000,-640.6179343,0.00030782,2]
[424175724,1780627844000,-247.04958506,0.00030782,2]
[424175730,1780627844000,-171.19,0.000312,7]
[424175800,1780627845000,-1006.01,0.00032428,7]
[424175804,1780627845000,-150.0,0.00032449,30]
[424175797,1780627845000,-472.0,0.00032418,30]
[424175802,1780627845000,-150.0,0.00032449,30]
[424175798,1780627845000,-219.0,0.00032418,30]
[424175796,1780627845000,-410.0,0.00032418,30]
[424175794,1780627845000,-240.0,0.00032414,30]
[424175806,1780627845000,-150.0,0.00032449,7]
[424175787,1780627845000,-215.0,0.00032414,30]
[424175805,1780627845000,-150.00000001,0.00032449,7]
[424175795,1780627845000,-1088.0,0.00032418,30]
[424175801,1780627845000,-150.0,0.00032449,30]
[424175803,1780627845000,-150.0,0.00032449,7]
[424175799,1780627845000,-209.0,0.00032426,30]
[424175820,1780627845000,-150.0,0.0003285,7]
[424175817,1780627845000,-150.0,0.00032562,2]
[424175810,1780627845000,-504.0,0.000325,7]
[424175818,1780627845000,-150.0,0.00032668,7]
[424175808,1780627845000,-150.0,0.00032449,7]
[424175813,1780627845000,-315.0,0.00032501,30]
[424175811,1780627845000,-171.19,0.000325,7]
[424175814,1780627845000,-858.0,0.00032501,30]
[424175816,1780627845000,-150.0,0.00032559,7]
[424175815,1780627845000,-1220.0,0.00032548,2]
[424175819,1780627845000,-150.0,0.00032777,7]
[424175821,1780627845000,-150.0,0.00032875,120]
[424175823,1780627845000,-500.0,0.00032876,7]
[424175834,1780627845000,-500.0,0.00032876,7]
[424175791,1780627845000,-236.0,0.00032414,30]
[424175807,1780627845000,-150.0,0.00032449,7]
[424175793,1780627845000,-302.0,0.00032414,30]
[424175763,1780627845000,-315.0,0.00031501,30]
[424175788,1780627845000,-1118.0,0.00032414,30]
[424175827,1780627845000,-500.0,0.00032876,7]
[424175766,1780627845000,-504.0,0.00031734,7]
[424175760,1780627845000,-472.0,0.00031418,30]
[424175761,1780627845000,-219.0,0.00031418,30]
[424175764,1780627845000,-858.0,0.00031501,30]
[424175765,1780627845000,-191.86,0.00031507,30]
[424175762,1780627845000,-305.0,0.00031473,2]
[424175774,1780627845000,-14404.06,0.00031987,14]
[424175768,1780627845000,-150.0,0.00031772,2]
[424175776,1780627845000,-163.43,0.000321,14]
[424175769,1780627845000,-150.0,0.00031772,2]
[424175773,1780627845000,-936.22,0.00031945,7]
[424175771,1780627845000,-2898.305,0.00031846,30]
[424175778,1780627845000,-299.77,0.00032192,2]
[424175777,1780627845000,-1085.42,0.000321,30]
[424175775,1780627845000,-700.0,0.00032,2]
[424175770,1780627845000,-198.0,0.00031772,2]
[424175767,1780627845000,-150.0,0.00031772,2]
[424175772,1780627845000,-164.932,0.00031846,30]
[424175779,1780627845000,-179.64,0.000322,7]
[424175780,1780627845000,-763.9,0.0003221,5]
[424175782,1780627845000,-953.97152614,0.00032243,2]
[424175785,1780627845000,-960.92690145,0.00032244,2]
[424175783,1780627845000,-1094.68799397,0.00032243,2]
[424175784,1780627845000,-1071.37185476,0.00032243,2]
[424175781,1780627845000,-259.14901934,0.0003224,2]
[424175792,1780627845000,-1454.0,0.00032414,30]
[424175789,1780627845000,-1037.0,0.00032414,30]
[424175790,1780627845000,-152.0,0.00032414,30]
[424175786,1780627845000,-629.1069766,0.00032314,2]
[424175826,1780627845000,-500.0,0.00032876,7]
[424175895,1780627845000,-2098.1,0.00033224,14]
[424175833,1780627845000,-500.0,0.00032876,7]
[424175874,1780627845000,-500.0,0.00032876,7]
[424175878,1780627845000,-150.0,0.00032886,7]
[424175879,1780627845000,-289.51,0.000329,120]
[424175876,1780627845000,-1015.4,0.00032877,30]
[424175881,1780627845000,-150.0,0.00032996,7]
[424175880,1780627845000,-150.0,0.00032964,7]
[424175882,1780627845000,-341.51,0.00033,30]
[424175884,1780627845000,-150.0,0.00033012,120]
[424175875,1780627845000,-1000.0,0.00032877,120]
[424175877,1780627845000,-191.86,0.00032877,30]
[424175883,1780627845000,-215.77576141,0.00033,7]
[424175885,1780627845000,-150.0,0.0003305,30]
[424175886,1780627845000,-259.45,0.00033055,4]
[424175888,1780627845000,-864.85,0.00033055,4]
[424175898,1780627845000,-403.30676112,0.00033271,2]
[424175899,1780627845000,-500.0,0.00033271,120]
[424175887,1780627845000,-605.39,0.00033055,4]
[424175891,1780627845000,-384.78026401,0.00033123,120]
[424175892,1780627845000,-150.0,0.00033149,120]
[424175897,1780627845000,-504.0,0.00033266,8]
[424175893,1780627845000,-160.0,0.000332,9]
[424175894,1780627845000,-150.0,0.00033214,7]
[424175890,1780627845000,-150.0,0.00033105,7]
[424175889,1780627845000,-215.6546714,0.00033073,14]
[424175896,1780627845000,-150.0,0.00033251,7]
[424175829,1780627845000,-500.0,0.00032876,7]
[424175901,1780627845000,-150.0,0.00033323,7]
[424175902,1780627845000,-150.0,0.00033343,2]
[424175903,1780627845000,-150.0,0.00033343,2]
[424175871,1780627845000,-500.0,0.00032876,7]
[424175873,1780627845000,-500.0,0.00032876,7]
[424175900,1780627845000,-150.0,0.00033286,120]
[424175867,1780627845000,-500.0,0.00032876,7]
[424175869,1780627845000,-500.0,0.00032876,7]
[424175822,1780627845000,-500.0,0.00032876,7]
[424175825,1780627845000,-500.0,0.00032876,7]
[424175831,1780627845000,-500.0,0.00032876,7]
[424175832,1780627845000,-500.0,0.00032876,7]
[424175828,1780627845000,-500.0,0.00032876,7]
[424175830,1780627845000,-500.0,0.00032876,7]
[424175835,1780627845000,-500.0,0.00032876,7]
[424175837,1780627845000,-500.0,0.00032876,7]
[424175842,1780627845000,-500.0,0.00032876,7]
[424175838,1780627845000,-500.0,0.00032876,7]
[424175840,1780627845000,-500.0,0.00032876,7]
[424175846,1780627845000,-500.0,0.00032876,7]
[424175844,1780627845000,-500.0,0.00032876,7]
[424175824,1780627845000,-500.0,0.00032876,7]
[424175853,1780627845000,-500.0,0.00032876,7]
[424175836,1780627845000,-500.0,0.00032876,7]
[424175868,1780627845000,-500.0,0.00032876,7]
[424175862,1780627845000,-500.0,0.00032876,7]
[424175860,1780627845000,-500.0,0.00032876,7]
[424175858,1780627845000,-500.0,0.00032876,7]
[424175857,1780627845000,-500.0,0.00032876,7]
[424175864,1780627845000,-500.0,0.00032876,7]
[424175855,1780627845000,-500.0,0.00032876,7]
[424175848,1780627845000,-500.0,0.00032876,7]
[424175856,1780627845000,-500.0,0.00032876,7]
[424175865,1780627845000,-500.0,0.00032876,7]
[424175850,1780627845000,-500.0,0.00032876,7]
[424175854,1780627845000,-500.0,0.00032876,7]
[424175852,1780627845000,-500.0,0.00032876,7]
[424175933,1780627846000,-150.0,0.00033651,7]
[424175948,1780627846000,-504.0,0.00034032,9]
[424175930,1780627846000,-167.0,0.00033568,2]
[424175931,1780627846000,-171.19,0.000336,30]